bitfinex/quotes_SOLUSD_20240601
["timestamp","ask_amount","ask_price","bid_price","bid_amount"]
[1717209526274,2.2123,167.24,167.2,5.52]
[1717209526500,2.2123,167.24,167.21,45.0]
[1717209527598,2.2122,167.25,167.21,45.0]
[1717209528287,9.0919,167.3,167.22,5.52]
[1717209528485,0.34,167.29,167.22,5.52]
[1717209528995,0.34,167.29,167.23,45.0]
[1717209529212,0.34,167.29,167.23,50.52]
[1717209529581,2.212,167.27,167.23,50.52]
[1717209535107,2.2118,167.28,167.23,50.52]
[1717209535894,2.2119,167.27,167.23,50.52]
[1717209540889,6.8806,167.27,167.16,6.6651]
[1717209541093,6.8806,167.27,167.23,5.52]
[1717209541296,2.2119,167.27,167.23,5.52]
[1717209542415,2.2119,167.27,167.16,24.6351]
[1717209542616,2.2119,167.27,167.23,5.52]
[1717209543595,2.2119,167.27,167.16,6.6651]
[1717209543802,2.2119,167.27,167.23,5.52]
[1717209546424,2.2119,167.27,167.17,20.0]
[1717209546605,2.2119,167.27,167.23,5.52]
[1717209550022,2.2119,167.27,167.24,5.52]
[1717209550410,0.34,167.29,167.24,5.52]
[1717209550616,0.34,167.3,167.24,5.52]
[1717209551311,2.2118,167.28,167.24,5.52]
[1717209552013,2.2119,167.27,167.24,5.52]
[1717209557134,2.2118,167.28,167.24,5.52]
[1717209557339,2.2118,167.28,167.25,5.52]
[1717209557829,2.2118,167.28,167.24,5.52]
[1717209558833,2.212,167.27,167.18,45.0]
[1717209559010,2.212,167.27,167.24,5.52]
[1717209559518,2.212,167.27,167.18,45.0]
[1717209559830,2.212,167.27,167.24,5.52]
[1717209561613,2.212,167.27,167.2,22.08]
[1717209561811,2.212,167.27,167.24,5.52]
[1717209562936,2.212,167.27,167.25,5.52]
[1717209563124,2.2118,167.29,167.25,5.52]
[1717209563329,2.2118,167.29,167.2,28.3868]
[1717209563330,2.2117,167.29,167.27,5.52]
[1717209566542,0.17,167.3,167.28,5.52]
[1717209566719,0.17,167.3,167.27,5.52]
[1717209567231,0.9365315,167.31,167.29,5.52]
[1717209567427,0.9365315,167.31,167.21,15.763]
[1717209567428,0.9365315,167.31,167.3,5.52]
[1717209568445,0.9365315,167.31,167.21,33.733]
[1717209568620,0.9365315,167.31,167.3,5.52]
[1717209569027,0.9365315,167.31,167.29,5.52]
[1717209571834,0.9365315,167.31,167.21,15.763]
[1717209572020,3.1479315,167.31,167.26,5.52]
[1717209573124,3.1479315,167.31,167.27,5.52]
[1717209573850,3.1479315,167.31,167.22,45.0]
[1717209574044,3.1479315,167.31,167.27,5.52]
[1717209574645,3.1479315,167.31,167.22,45.0]
[1717209574948,3.1479315,167.31,167.27,5.52]
[1717209576945,3.1479315,167.31,167.28,5.52]
[1717209577138,3.1479315,167.31,167.27,5.52]
[1717209577744,3.1479315,167.31,167.28,5.52]
[1717209578448,3.1479315,167.31,167.22,45.0]
[1717209578629,3.1479315,167.31,167.28,5.52]
[1717209579356,3.1479315,167.31,167.22,45.0]
[1717209579642,3.1479315,167.31,167.28,5.52]
[1717209580146,0.9365315,167.31,167.28,5.52]
[1717209580353,0.9365315,167.31,167.29,5.52]
[1717209582834,3.1479315,167.31,167.28,5.52]
[1717209584378,3.1479315,167.31,167.22,45.0]
[1717209584540,3.1479315,167.31,167.29,5.52]
[1717209589236,2.6479315,167.31,167.29,5.52]
[1717209591766,2.6479315,167.31,167.22,45.0]
[1717209591967,2.6479315,167.31,167.29,5.52]
[1717209593342,2.6479315,167.31,167.3,5.52]
[1717209595845,2.6479315,167.31,167.29,5.52]
[1717209596772,0.4365315,167.31,167.29,5.52]
[1717209597065,0.4365315,167.31,167.25,1.45788272]
[1717209597270,0.4365315,167.31,167.29,5.52]
[1717209597486,0.4365315,167.31,167.25,1.45788272]
[1717209597764,0.4365315,167.31,167.29,5.52]
[1717209601063,2.6479315,167.31,167.25,2.3906054]
[1717209601368,2.6479315,167.31,167.28,5.52]
[1717209601669,0.4365315,167.31,167.29,50.52]
[1717209602163,0.4365315,167.31,167.3,5.52]
[1717209602367,0.4365315,167.31,167.29,45.0]
[1717209602565,0.4365315,167.31,167.29,50.52]
[1717209603065,0.4365315,167.31,167.24,6.4148]
[1717209603268,2.2118,167.29,167.25,5.52]
[1717209605166,2.2116,167.3,167.25,5.52]
[1717209605368,2.2116,167.3,167.2,22.08]
[1717209605369,2.2116,167.3,167.26,50.52]
[1717209605671,0.4365315,167.31,167.26,45.0]
[1717209605878,0.4365315,167.31,167.28,5.52]
[1717209606460,2.6479315,167.31,167.28,5.52]
[1717209611164,0.4365315,167.31,167.28,5.52]
[1717209613777,0.4365315,167.31,167.29,5.52]
[1717209616365,0.4365315,167.31,167.26,45.0]
[1717209616565,0.4365315,167.31,167.29,5.52]
[1717209616861,0.4365315,167.31,167.28,5.52]
[1717209617273,0.4365315,167.31,167.26,45.0]
[1717209617461,2.6479315,167.31,167.26,5.52]
[1717209617677,2.2116,167.3,167.26,5.52]
[1717209619786,2.6479315,167.31,167.26,5.52]
[1717209620284,0.17,167.3,167.18,6.57]
[1717209620487,2.2121,167.26,167.22,5.52]
[1717209620665,2.2122,167.25,167.18,6.57]
[1717209620866,2.2121,167.26,167.21,5.52]
[1717209621065,7.732,167.27,167.21,5.52]
[1717209621688,7.732,167.27,167.18,6.57]
[1717209621902,7.732,167.27,167.21,5.52]
[1717209622488,7.732,167.27,167.18,6.57]
[1717209622681,7.732,167.27,167.21,5.52]
[1717209622885,5.52,167.26,167.21,5.52]
[1717209623078,5.52,167.26,167.2,5.52]
[1717209623278,5.52,167.26,167.21,45.0]
[1717209625988,10.1887,167.26,167.21,45.0]
[1717209626292,10.1887,167.26,167.21,50.52]
[1717209626974,4.6687,167.26,167.21,50.52]
[1717209628090,4.6687,167.26,167.21,45.0]
[1717209628292,6.8808,167.26,167.21,50.52]
[1717209630293,4.4232,167.3,167.21,50.52]
[1717209630508,2.2119,167.28,167.21,45.0]
[1717209631998,2.2117,167.29,167.21,45.0]
[1717209632396,2.2116,167.3,167.21,45.0]
[1717209632576,2.2116,167.3,167.27,5.52]
[1717209633277,2.2116,167.3,167.26,5.52]
[1717209636679,2.2116,167.3,167.21,45.0]
[1717209636879,2.2116,167.3,167.26,5.52]
[1717209637101,2.2116,167.3,167.25,5.52]
[1717209641076,0.34,167.29,167.24,5.52]
[1717209641480,2.2116,167.3,167.25,50.52]
[1717209642092,2.2116,167.3,167.26,5.52]
[1717209644004,2.2116,167.3,167.25,50.52]
[1717209644507,2.2116,167.3,167.25,45.0]
[1717209646510,2.2117,167.29,167.25,45.0]
[1717209646709,2.2117,167.29,167.25,50.52]
[1717209651111,2.2117,167.29,167.25,5.52]
[1717209651312,7.7317,167.29,167.23,5.52]
[1717209651518,12.4004,167.29,167.24,45.0]
[1717209654044,7.7317,167.29,167.24,45.0]
[1717209654315,2.2117,167.29,167.24,50.52]
[1717209654617,7.7317,167.29,167.24,50.52]
[1717209655719,2.3818,167.28,167.23,5.52]
[1717209656015,2.5518,167.28,167.23,5.52]
[1717209656424,2.5518,167.28,167.19,6.57]
[1717209656720,2.5518,167.28,167.23,5.52]
[1717209657595,2.2119,167.27,167.2,45.0]
[1717209657820,8.0721,167.26,167.2,5.52]
[1717209658025,7.9021,167.26,167.15,6.196]
[1717209658317,7.9021,167.26,167.2,5.52]
[1717209658905,0.17,167.26,167.21,5.52]
[1717209659202,0.34,167.26,167.22,5.52]
[1717209660011,2.2121,167.26,167.15,24.166]
[1717209660211,2.2121,167.26,167.22,5.52]
[1717209661312,2.2119,167.28,167.24,5.52]
[1717209663106,2.2119,167.28,167.16,122.97]
[1717209663107,2.2119,167.28,167.23,5.52]
[1717209663413,2.212,167.27,167.23,5.52]
[1717209663819,7.732,167.27,167.16,45.0]
[1717209664002,7.732,167.27,167.21,5.52]
[1717209666324,0.34,167.26,167.21,5.52]
[1717209667118,5.0087,167.26,167.21,5.52]
[1717209669022,7.2208,167.26,167.21,5.52]
[1717209670126,12.7408,167.26,167.2,5.52]
[1717209670638,5.20214589,167.25,167.2,5.52]
[1717209670807,2.5524,167.24,167.19,5.52]
[1717209671006,2.5524,167.24,167.16,45.0]
[1717209671211,2.5524,167.24,167.19,5.52]
[1717209671730,0.34,167.24,167.19,5.52]
[1717209671944,2.5524,167.24,167.16,45.0]
[1717209672239,2.5524,167.24,167.19,5.52]
[1717209673309,5.86,167.24,167.14,14.93111007]
[1717209673528,8.5103668,167.23,167.17,5.52]
[1717209673834,37.2213,167.22,167.17,5.52]
[1717209674209,37.2213,167.22,167.12,31.02711007]
[1717209674514,35.0087,167.22,167.17,5.52]
[1717209675917,30.34,167.22,167.2,5.52]
[1717209676228,2.2124,167.24,167.2,5.52]
[1717209676401,0.34,167.23,167.2,5.52]
[1717209676607,2.5525,167.23,167.2,5.52]
[1717209677508,2.5525,167.23,167.19,5.52]
[1717209681247,2.5525,167.23,167.13,45.0]
[1717209681531,2.5525,167.23,167.19,5.52]
[1717209682633,2.5525,167.23,167.13,45.0]
[1717209682835,2.5525,167.23,167.19,5.52]
[1717209684327,2.2126,167.22,167.19,5.52]
[1717209687441,2.5525,167.23,167.19,5.52]
[1717209688035,2.5525,167.23,167.2,5.52]
[1717209688243,2.5525,167.23,167.19,5.52]
[1717209689440,2.5525,167.23,167.13,45.0]
[1717209689640,2.5525,167.23,167.19,5.52]
[1717209692038,2.2126,167.22,167.19,5.52]
[1717209693148,4.6687,167.27,167.13,62.97]
[1717209693323,2.2122,167.25,167.22,5.52]
[1717209693646,2.2121,167.26,167.23,5.52]
[1717209693845,4.4232,167.3,167.15,20.06489515]
[1717209693846,2.2122,167.25,167.22,5.52]
[1717209695240,2.2121,167.26,167.22,5.52]
[1717209695442,2.2121,167.26,167.23,5.52]
[1717209695832,2.2121,167.26,167.24,5.52]
[1717209696338,2.212,167.27,167.24,5.52]
[1717209697446,2.212,167.27,167.25,5.52]
[1717209700645,2.2121,167.26,167.25,5.52]
[1717209700848,2.2121,167.26,167.24,5.52]
[1717209701126,2.2121,167.26,167.22,5.52]
[1717209701651,2.2121,167.26,167.23,5.52]
[1717209703553,2.2121,167.26,167.14,81.8763]
[1717209703759,0.17,167.25,167.21,5.52]
[1717209704152,0.17,167.25,167.2,5.52]
[1717209704635,2.3822,167.25,167.2,5.52]
[1717209706942,2.3822,167.25,167.14,21.8763]
[1717209707142,2.3822,167.25,167.21,5.52]
[1717209709759,2.3822,167.25,167.15,65.0]
[1717209709964,2.3822,167.25,167.21,5.52]
[1717209711563,0.17,167.25,167.21,5.52]
[1717209711764,0.17,167.25,167.22,5.52]
[1717209713966,0.17,167.25,167.15,65.0]
[1717209714143,0.17,167.25,167.22,5.52]
[1717209718866,2.2121,167.26,167.22,5.52]
[1717209719067,2.212,167.27,167.24,5.52]
[1717209722470,2.212,167.27,167.15,142.97]
[1717209722669,2.212,167.27,167.24,5.52]
[1717209722972,2.2121,167.26,167.24,5.52]
[1717209725173,2.2121,167.26,167.15,65.0]
[1717209725382,2.2121,167.26,167.22,5.52]
[1717209727377,2.2121,167.26,167.23,5.52]
[1717209727592,2.2121,167.26,167.22,5.52]
[1717209730385,2.2121,167.26,167.23,5.52]
[1717209731785,2.2121,167.26,167.15,65.0]
[1717209731957,2.2121,167.26,167.23,5.52]
[1717209732353,4.6687,167.32,167.25,5.52]
[1717209732563,2.2118,167.29,167.25,5.52]
[1717209732785,2.2118,167.28,167.2,5.52]
[1717209732968,2.2118,167.28,167.24,5.52]
[1717209734780,2.2119,167.27,167.24,5.52]
[1717209740464,2.2119,167.27,167.18,6.1953]
[1717209740757,2.2119,167.27,167.24,5.52]
[1717209742975,2.2119,167.27,167.18,6.1953]
[1717209743287,2.2119,167.27,167.22,5.52]
[1717209743983,2.2119,167.27,167.18,6.1953]
[1717209744280,2.2119,167.27,167.23,5.52]
[1717209745184,2.2119,167.27,167.24,5.52]
[1717209745382,2.2119,167.27,167.2,22.08]
[1717209745587,2.2119,167.27,167.21,45.0]
[1717209746270,2.2119,167.27,167.23,5.52]
[1717209748593,2.2119,167.27,167.21,45.0]
[1717209748787,2.2119,167.27,167.23,5.52]
[1717209750091,2.2119,167.27,167.21,45.0]
[1717209750269,2.2119,167.27,167.23,5.52]
[1717209751390,2.3818,167.28,167.23,5.52]
[1717209751591,0.17,167.27,167.23,5.52]
[1717209751769,0.17,167.27,167.21,45.0]
[1717209752093,0.17,167.27,167.23,5.52]
[1717209752868,0.17,167.27,167.24,5.52]
[1717209753069,2.3818,167.28,167.24,5.52]
[1717209756202,2.212,167.27,167.24,5.52]
[1717209759695,2.212,167.27,167.25,5.52]
[1717209763204,2.212,167.27,167.24,5.52]
[1717209764905,2.212,167.27,167.21,45.0]
[1717209769910,2.3818,167.28,167.21,45.0]
[1717209770116,2.2117,167.3,167.27,5.52]
[1717209770312,0.4365315,167.31,167.27,5.52]
[1717209770614,2.6479315,167.31,167.28,5.52]
[1717209771192,0.4365315,167.31,167.29,5.52]
[1717209771391,2.6479315,167.31,167.29,5.52]
[1717209771598,2.6479315,167.31,167.28,5.52]
[1717209772794,2.2116,167.3,167.28,5.52]
[1717209773285,0.4365315,167.31,167.22,6.3962]
[1717209773489,0.4365315,167.31,167.29,5.52]
[1717209773691,0.4365315,167.31,167.3,5.52]
[1717209773996,0.4365315,167.31,167.24,15.4658]
[1717209774196,0.4365315,167.31,167.3,5.52]
[1717209778898,0.4365315,167.31,167.3,50.52]
[1717209782218,0.4365315,167.31,167.3,56.813]
[1717209785112,0.4365315,167.31,167.3,73.3978]
[1717209785524,0.4365315,167.31,167.3,67.8778]
[1717209785817,0.4365315,167.31,167.3,50.52]
[1717209790420,0.4365315,167.31,167.3,45.0]
[1717209790923,0.4365315,167.31,167.3,50.52]
[1717209791713,0.4365315,167.31,167.3,45.0]
[1717209791921,0.4365315,167.31,167.3,50.52]
[1717209796221,0.4365315,167.31,167.3,56.537]
[1717209798526,0.4365315,167.31,167.3,50.52]
[1717209799214,0.4365315,167.31,167.3,56.8266]
[1717209799418,0.4365315,167.31,167.3,72.1735]
[1717209804610,0.4365315,167.31,167.3,56.8266]
[1717209813524,0.4365315,167.31,167.3,72.1735]
[1717209813825,0.4365315,167.31,167.3,92.1735]
[1717209819134,0.4365315,167.31,167.3,110.3135]
[1717209819432,0.4365315,167.31,167.3,110.4835]
[1717209821933,5.4,167.37,167.31,77.97]
[1717209822240,5.4,167.37,167.36,5.52]
[1717209822548,5.4,167.37,167.36,50.52]
[1717209825642,5.4,167.37,167.36,45.0]
[1717209825949,5.4,167.37,167.36,50.52]
[1717209827129,5.4,167.37,167.36,45.0]
[1717209827432,5.4,167.37,167.36,50.52]
[1717209835353,5.4,167.37,167.3,80.315887]
[1717209835564,5.4,167.37,167.31,20.0]
[1717209836053,5.4,167.37,167.36,5.52]
[1717209836554,5.4,167.37,167.31,20.0]
[1717209836759,5.4,167.37,167.36,5.52]
[1717209836942,5.4,167.37,167.36,50.52]
[1717209837139,5.4,167.37,167.36,45.0]
[1717209837349,5.4,167.37,167.36,50.52]
[1717209838056,5.4,167.37,167.3,26.658987]
[1717209838248,5.4,167.37,167.34,5.52]
[1717209838453,10.0687,167.37,167.34,5.52]
[1717209838960,10.0687,167.37,167.33,5.52]
[1717209839361,10.0687,167.37,167.3,26.658987]
[1717209839534,10.0687,167.37,167.34,5.52]
[1717209844464,10.0687,167.37,167.31,45.0]
[1717209844858,10.0687,167.37,167.33,5.52]
[1717209845563,12.2794,167.37,167.33,5.52]
[1717209846141,4.6687,167.36,167.33,5.52]
[1717209846765,7.6107,167.37,167.34,5.52]
[1717209846968,7.6107,167.37,167.31,45.0]
[1717209846969,5.4,167.37,167.36,5.52]
[1717209848073,5.4,167.37,167.35,5.52]
[1717209850478,5.4,167.37,167.31,45.0]
[1717209850772,5.4,167.37,167.35,5.52]
[1717209853687,5.4,167.37,167.36,5.52]
[1717209853878,5.4,167.37,167.36,62.355]
[1717209854177,5.4,167.37,167.36,78.915]
[1717209854364,5.4,167.37,167.36,51.315]
[1717209854672,5.4,167.37,167.36,95.3136]
[1717209855856,5.4,167.37,167.36,67.7136]
[1717209856056,5.4,167.37,167.36,95.3136]
[1717209856252,5.4,167.37,167.36,165.8536]
[1717209856470,0.03729832,167.41,167.37,17.97]
[1717209856660,0.03729832,167.41,167.38,51.315]
[1717209856968,0.03729832,167.41,167.4,5.52]
[1717209857169,0.03729832,167.41,167.4,50.52]
[1717209858654,0.03729832,167.41,167.4,45.0]
[1717209858855,0.03729832,167.41,167.4,5.52]
[1717209859060,0.03729832,167.41,167.4,50.52]
[1717209872672,0.03729832,167.41,167.4,117.018]
[1717209872869,0.8184195,167.46,167.4,158.5182]
[1717209873180,0.8184195,167.46,167.45,5.52]
[1717209873376,0.8184195,167.46,167.45,50.52]
[1717209875083,0.8184195,167.46,167.45,45.0]
[1717209875286,0.8184195,167.46,167.45,50.52]
[1717209876511,0.8184195,167.46,167.45,49.964801]
[1717209888309,0.8184195,167.46,167.38,17.97]
[1717209888618,0.8184195,167.46,167.45,5.52]
[1717209890111,0.8184195,167.46,167.45,50.52]
[1717209898131,0.8184195,167.46,167.45,45.0]
[1717209898309,0.8184195,167.46,167.45,50.52]
[1717209900203,0.8184195,167.46,167.45,45.0]
[1717209900405,0.8184195,167.46,167.38,11.49666114]
[1717209900631,0.8184195,167.46,167.44,5.52]
[1717209901302,0.8184195,167.46,167.45,5.52]
[1717209903616,0.8184195,167.46,167.45,50.52]
[1717209903819,0.8184195,167.46,167.45,56.8002]
[1717209904904,2.2081,167.56,167.45,72.474]
[1717209905103,2.2081,167.56,167.53,5.52]
[1717209905305,30.0,167.54,167.53,5.52]
[1717209905521,2.2081,167.56,167.53,5.52]
[1717209905726,2.208,167.57,167.54,5.52]
[1717209906308,9.9349,167.62,167.48,60.0]
[1717209906514,9.9349,167.62,167.56,5.52]
[1717209906515,2.2078,167.59,167.56,5.52]
[1717209906725,9.9349,167.62,167.56,5.52]
[1717209906914,2.2078,167.59,167.56,5.52]
[1717209907114,2.2076,167.6,167.52,15.6738]
[1717209907318,2.2076,167.6,167.58,5.52]
[1717209907727,2.2074,167.62,167.58,5.52]
[1717209907912,2.2074,167.62,167.59,5.52]
[1717209908228,1.1652008,167.64,167.52,37.7538]
[1717209908229,1.1652008,167.64,167.56,5.52]
[1717209908407,2.2076,167.61,167.56,5.52]
[1717209908612,2.2076,167.61,167.58,5.52]
[1717209908918,2.2075,167.61,167.57,5.52]
[1717209909117,2.2075,167.61,167.59,5.52]
[1717209909428,2.2073,167.63,167.6,6.2802]
[1717209909659,3.3723008,167.64,167.61,5.52]
[1717209909822,2.2072,167.63,167.58,45.0]
[1717209910027,1.1652008,167.64,167.61,5.52]
[1717209910740,1.1652008,167.64,167.63,5.52]
[1717209911035,1.1652008,167.64,167.58,51.2802]
[1717209911537,1.1652008,167.64,167.63,5.52]
[1717209911829,1.1652008,167.64,167.58,51.2802]
[1717209912032,1.1652008,167.64,167.61,5.52]
[1717209912232,1.1652008,167.64,167.63,5.52]
[1717209912415,1.1652008,167.64,167.59,6.2802]
[1717209912618,1.1652008,167.64,167.62,5.52]
[1717209913415,1.1652008,167.64,167.63,5.52]
[1717209913631,1.1652008,167.64,167.63,50.52]
[1717209913817,1.1652008,167.64,167.63,45.0]
[1717209914130,1.1652008,167.64,167.63,50.52]
[1717209914330,1.1652008,167.64,167.58,6.2802]
[1717209914722,1.1652008,167.64,167.61,5.52]
[1717209915234,1.1652008,167.64,167.56,15.6738]
[1717209915436,3.3724008,167.64,167.59,5.52]
[1717209915634,3.3724008,167.64,167.54,6.2802]
[1717209915840,2.2073,167.62,167.54,6.2802]
[1717209916028,2.2073,167.62,167.58,5.52]
[1717209916722,2.2072,167.63,167.54,6.2802]
[1717209917024,30.0,167.61,167.58,5.52]
[1717209917337,30.0,167.61,167.54,6.2802]
[1717209917727,30.0,167.61,167.58,5.52]
[1717209918441,30.0,167.61,167.54,6.2802]
[1717209918633,30.0,167.61,167.58,5.52]
[1717209919939,30.0,167.61,167.54,6.2802]
[1717209920122,30.0,167.61,167.58,5.52]
[1717209921344,30.0,167.61,167.55,45.0]
[1717209921645,30.0,167.61,167.56,5.52]
[1717209922526,32.2075,167.61,167.56,5.52]
[1717209924546,30.0,167.61,167.56,5.52]
[1717209924842,30.0,167.61,167.57,5.52]
[1717209925227,30.0,167.61,167.58,5.52]
[1717209926544,30.0,167.61,167.57,5.52]
[1717209927045,32.2075,167.61,167.56,5.52]
[1717209927221,30.0,167.61,167.56,5.52]
[1717209927423,34.6687,167.61,167.55,45.0]
[1717209927635,2.3776,167.6,167.55,45.0]
[1717209927843,30.0,167.58,167.55,45.0]
[1717209928038,30.0,167.58,167.55,50.52]
[1717209929261,30.0,167.58,167.55,45.0]
[1717209929447,30.0,167.58,167.55,50.52]
[1717209931157,30.0,167.58,167.55,45.0]
[1717209931330,30.0,167.58,167.55,50.52]
[1717209931657,2.2073,167.62,167.57,5.52]
[1717209931948,2.2072,167.63,167.59,5.52]
[1717209932248,1.1652008,167.64,167.55,45.0]
[1717209932249,30.0,167.6,167.55,45.0]
[1717209932452,1.1652008,167.64,167.59,5.52]
[1717209932643,1.1652008,167.64,167.62,5.52]
[1717209933042,30.0,167.63,167.62,5.52]
[1717209933237,1.1652008,167.64,167.62,5.52]
[1717209933547,1.1652008,167.64,167.63,50.52]
[1717209945663,1.1652008,167.64,167.63,45.0]
[1717209947944,1.1652008,167.64,167.63,50.52]
[1717209949469,1.1652008,167.64,167.62,5.52]
[1717209949755,1.1652008,167.64,167.55,60.0]
[1717209949961,1.1652008,167.64,167.53,6.0257]
[1717209949962,1.1652008,167.64,167.6,5.52]
[1717209950158,1.1652008,167.64,167.62,5.52]
[1717209951145,1.1652008,167.64,167.63,45.0]
[1717209951557,1.1652008,167.64,167.62,45.0]
[1717209953383,1.1652008,167.64,167.61,5.52]
[1717209953748,1.1652008,167.64,167.6,5.52]
[1717209954154,1.1652008,167.64,167.55,17.97]
[1717209954350,8.0411008,167.64,167.53,12.0057]
[1717209954651,2.5472,167.63,167.57,5.52]
[1717209955961,2.2076,167.6,167.53,6.0257]
[1717209956165,2.2076,167.6,167.55,5.52]
[1717209956471,7.7275,167.61,167.55,5.52]
[1717209957249,2.2075,167.61,167.56,5.52]
[1717209960568,2.2075,167.61,167.52,5.52]
[1717209960759,2.2075,167.61,167.53,45.0]
[1717209961277,2.2073,167.62,167.53,45.0]
[1717209962155,1.1652008,167.64,167.59,5.52]
[1717209962356,1.1652008,167.64,167.6,50.52]
[1717209962575,1.1652008,167.64,167.6,5.52]
[1717209963357,1.1652008,167.64,167.59,5.52]
[1717209963667,1.1652008,167.64,167.6,45.0]
[1717209964174,2.2072,167.63,167.57,5.52]
[1717209964367,7.7272,167.63,167.58,45.0]
[1717209965061,3.3723008,167.64,167.58,50.52]
[1717209965574,8.8923008,167.64,167.58,50.52]
[1717209965771,3.3723008,167.64,167.58,50.52]
[1717209965976,8.8923008,167.64,167.58,50.52]
[1717209966886,6.6852008,167.64,167.58,50.52]
[1717209967279,1.1652008,167.64,167.58,50.52]
[1717209967781,3.3723008,167.64,167.58,50.52]
[1717209969368,3.3723008,167.64,167.58,45.0]
[1717209969570,3.3723008,167.64,167.58,50.52]
[1717209969771,3.3723008,167.64,167.58,45.0]
[1717209970089,3.3723008,167.64,167.58,50.52]
[1717209970694,1.1652008,167.64,167.58,50.52]
[1717209971883,3.3723008,167.64,167.58,45.0]
[1717209972199,2.2072,167.63,167.58,45.0]
[1717209973593,2.2072,167.63,167.58,50.52]
[1717209974291,2.2073,167.62,167.58,45.0]
[1717209974488,2.2073,167.62,167.52,91.31140128]
[1717209974489,2.2073,167.62,167.52,30.97140128]
[1717209974684,1.1652008,167.64,167.57,5.52]
[1717209974884,2.2072,167.63,167.53,37.97]
[1717209975088,2.2072,167.63,167.58,5.52]
[1717209975274,2.2072,167.63,167.58,5.48976]
[1717209975593,2.2074,167.62,167.58,5.48976]
[1717209975795,2.2074,167.62,167.59,45.0]
[1717209976197,2.2074,167.62,167.58,45.0]
[1717209976375,6.6852008,167.64,167.52,30.97140128]
[1717209976376,2.2075,167.61,167.52,30.97140128]
[1717209976697,2.2075,167.61,167.55,5.52]
[1717209977299,7.7275,167.61,167.55,5.52]
[1717209978193,10.3587,167.6,167.54,5.52]
[1717209978580,10.1887,167.6,167.54,5.52]
[1717209979004,5.52,167.59,167.53,5.52]
[1717209979503,5.52,167.58,167.5,8.89140128]
[1717209979801,2.2081,167.56,167.51,17.1786876]
[1717209980010,2.2081,167.56,167.51,5.98]
[1717209980188,2.2081,167.56,167.51,11.5]
[1717209980385,5.52,167.57,167.51,11.5]
[1717209980609,7.7281,167.57,167.51,5.52]
[1717209980906,7.7281,167.57,167.5,8.89140128]
[1717209981075,7.7281,167.57,167.51,11.19876825]
[1717209981280,12.3968,167.57,167.52,45.0]
[1717209982616,12.3968,167.57,167.51,50.52]
[1717209984010,2.2083,167.55,167.51,45.0]
[1717209984220,0.17,167.58,167.49,8.89140128]
[1717209984221,10.1887,167.54,167.49,8.89140128]
[1717209984515,2.2085,167.53,167.49,8.89140128]
[1717209984884,4.6687,167.52,167.49,8.89140128]